bitfinex-derivatives/quotes_BNBF0:USTF0_20250807
["timestamp","ask_amount","ask_price","bid_price","bid_amount"]
[1754598697374,0.85984207,781.82,781.42,1.002]
[1754598697573,0.85984207,781.81,781.42,1.002]
[1754598697778,0.85984207,781.8,781.42,1.002]
[1754598698077,0.85984207,781.79,781.42,1.002]
[1754598698275,0.85984207,781.78,781.42,1.002]
[1754598698478,0.85984207,781.77,781.42,1.002]
[1754598698677,0.8626864,781.85,781.42,1.002]
[1754598698678,0.85984207,781.76,781.42,1.002]
[1754598698877,0.85984207,781.75,781.42,1.002]
[1754598699079,0.85984207,781.74,781.42,1.002]
[1754598699377,0.85984207,781.73,781.42,1.002]
[1754598699676,0.85984207,781.72,781.42,1.002]
[1754598699875,0.85984207,781.71,781.42,1.002]
[1754598700075,0.85984207,781.7,781.42,1.002]
[1754598700278,0.85984207,781.69,781.42,1.002]
[1754598700477,0.85984207,781.68,781.42,1.002]
[1754598700777,0.85984207,781.67,781.42,1.002]
[1754598701079,0.85984207,781.66,781.42,1.002]
[1754598701279,0.85984207,781.65,781.42,1.002]
[1754598701478,0.85984207,781.64,781.42,1.002]
[1754598701680,0.85984207,781.63,781.42,1.002]
[1754598701980,0.8626864,781.86,781.42,1.002]
[1754598702277,0.85909349,781.85,781.42,1.002]
[1754598702581,0.85909349,781.84,781.42,1.002]
[1754598702777,0.85909349,781.83,781.42,1.002]
[1754598702982,0.85909349,781.82,781.42,1.002]
[1754598703179,0.85909349,781.81,781.42,1.002]
[1754598703383,0.85909349,781.8,781.42,1.002]
[1754598703579,0.85909349,781.79,781.42,1.002]
[1754598703786,0.8626864,781.77,781.42,1.002]
[1754598703984,0.85909349,781.76,781.42,1.002]
[1754598704181,0.85909349,781.75,781.42,1.002]
[1754598704383,0.85909349,781.74,781.42,1.002]
[1754598704579,0.85909349,781.73,781.41,0.855]
[1754598704883,0.8626864,781.77,781.41,0.855]
[1754598704884,0.85909349,781.72,781.41,0.855]
[1754598705079,0.85909349,781.71,781.41,0.855]
[1754598705280,0.85909349,781.7,781.41,0.855]
[1754598705480,0.85909349,781.69,781.41,0.855]
[1754598705982,0.85867262,781.68,781.41,0.855]
[1754598706180,0.85867262,781.67,781.41,0.855]
[1754598706380,0.85867262,781.66,781.41,0.855]
[1754598706678,0.85867262,781.65,781.41,0.855]
[1754598706882,0.85867262,781.64,781.42,0.776]
[1754598707179,0.85867262,781.63,781.42,0.776]
[1754598707382,0.85867262,781.62,781.42,0.776]
[1754598707585,0.8626864,781.8,781.42,0.776]
[1754598707880,0.85849635,781.79,781.42,0.776]
[1754598708079,0.85849635,781.78,781.42,0.776]
[1754598708283,0.85849635,781.77,781.42,0.776]
[1754598708480,0.85849635,781.76,781.42,0.776]
[1754598708682,0.85849635,781.75,781.42,0.776]
[1754598708883,0.85849635,781.74,781.42,0.776]
[1754598709183,0.85849635,781.73,781.42,0.776]
[1754598709384,0.85849635,781.72,781.42,0.776]
[1754598709581,0.85849635,781.71,781.42,0.776]
[1754598709885,0.85849635,781.7,781.42,0.776]
[1754598710084,0.85849635,781.69,781.42,0.776]
[1754598710280,0.85849635,781.68,781.42,0.776]
[1754598710485,0.85849635,781.67,781.42,0.776]
[1754598710681,0.85849635,781.66,781.42,0.776]
[1754598710986,0.85849635,781.65,781.43,1.05]
[1754598711181,0.85849635,781.64,781.43,1.05]
[1754598711485,0.8626864,781.83,781.43,1.05]
[1754598711687,0.8582165,781.82,781.43,1.05]
[1754598711887,0.8582165,781.81,781.43,1.05]
[1754598712084,0.8582165,781.8,781.43,1.05]
[1754598712387,0.8582165,781.79,781.43,1.05]
[1754598712686,0.8582165,781.78,781.43,1.05]
[1754598712981,0.8626864,781.83,781.43,1.05]
[1754598712982,0.8582165,781.77,781.43,1.05]
[1754598713186,0.8582165,781.76,781.43,1.05]
[1754598713382,0.8582165,781.75,781.43,1.05]
[1754598713582,0.8582165,781.74,781.43,1.05]
[1754598713886,0.8582165,781.73,781.43,1.05]
[1754598714087,0.8582165,781.72,781.43,1.05]
[1754598714284,0.8582165,781.71,781.43,1.05]
[1754598714488,0.8582165,781.7,781.43,1.05]
[1754598714685,0.8626864,781.84,781.43,1.05]
[1754598714885,0.85805884,781.83,781.43,1.05]
[1754598715085,0.85805884,781.82,781.43,1.05]
[1754598715289,0.85805884,781.81,781.43,1.05]
[1754598715489,0.85805884,781.8,781.43,1.05]
[1754598715689,0.85805884,781.79,781.43,1.05]
[1754598715890,0.85805884,781.78,781.43,1.05]
[1754598716187,0.85805884,781.77,781.43,1.05]
[1754598716388,0.85805884,781.76,781.43,1.05]
[1754598716685,0.85805884,781.75,781.43,1.05]
[1754598716985,0.85805884,781.74,781.43,1.05]
[1754598717188,0.85805884,781.73,781.43,1.05]
[1754598717390,0.85805884,781.72,781.43,1.05]
[1754598717586,0.85805884,781.71,781.43,1.05]
[1754598717791,0.85795897,781.7,781.43,1.05]
[1754598718086,0.85795897,781.69,781.43,1.05]
[1754598718290,0.85795897,781.68,781.43,1.05]
[1754598718492,0.85795897,781.67,781.43,1.05]
[1754598718796,0.85795897,781.66,781.43,1.05]
[1754598718996,0.85795897,781.65,781.43,1.05]
[1754598719197,0.85795897,781.64,781.43,1.05]
[1754598719396,0.8626864,781.83,781.43,1.05]
[1754598719592,0.8579554,781.82,781.43,1.05]
[1754598719896,0.8579554,781.81,781.43,1.05]
[1754598720096,0.8626864,781.83,781.43,1.05]
[1754598720097,0.8579554,781.8,781.43,1.05]
[1754598720294,0.8579554,781.79,781.43,1.05]
[1754598720494,0.8579554,781.78,781.43,1.05]
[1754598720694,0.8579554,781.77,781.43,1.05]
[1754598720897,0.8579554,781.76,781.43,1.05]
[1754598721097,0.8579554,781.75,781.43,1.05]
[1754598721297,0.8579554,781.74,781.43,1.05]
[1754598721594,0.8579554,781.73,781.43,1.05]
[1754598721794,0.767,781.99,781.43,1.05]
[1754598721795,0.8579554,781.72,781.43,1.05]
[1754598721994,0.8579554,781.71,781.43,1.05]
[1754598722297,0.8579554,781.7,781.43,1.05]
[1754598722496,0.8579554,781.69,781.43,1.05]
[1754598722694,0.8579554,781.68,781.43,1.05]
[1754598722893,0.8626864,781.83,781.43,1.05]
[1754598723097,0.85796414,781.82,780.99,0.85891021]
[1754598723393,0.767,781.99,780.9,0.85891021]
[1754598723394,0.85796414,781.81,780.9,0.85891021]
[1754598723592,0.85797765,781.8,780.9,0.85891021]
[1754598723796,0.85797765,781.79,780.9,0.85891021]
[1754598723999,0.85797765,781.78,780.9,0.85891021]
[1754598724195,0.85797765,781.77,780.9,0.85891021]
[1754598724400,0.85797765,781.76,780.9,0.85891021]
[1754598724595,0.85797765,781.75,780.9,0.85891021]
[1754598724797,0.85797765,781.74,780.9,0.85891021]
[1754598724998,0.85797765,781.73,780.9,0.85891021]
[1754598725199,0.85797765,781.72,780.9,0.85891021]
[1754598725494,0.85797765,781.71,780.9,0.85891021]
[1754598725698,1.6296864,781.99,780.9,0.85891021]
[1754598725999,1.72071716,781.98,780.9,0.85891021]
[1754598726298,0.85803076,781.97,780.9,0.85891021]
[1754598726596,0.85803076,781.96,780.91,0.989]
[1754598726794,0.85803076,781.95,780.91,0.989]
[1754598726999,0.85803076,781.94,780.92,0.971]
[1754598727200,0.85803076,781.93,780.92,0.971]
[1754598727396,0.85803076,781.92,780.92,0.971]
[1754598727697,0.85803076,781.91,780.92,0.971]
[1754598727997,0.85803076,781.9,780.92,0.971]
[1754598728196,0.85803076,781.89,780.92,0.971]
[1754598728500,0.85803076,781.88,780.92,0.971]
[1754598728700,0.85803076,781.87,780.92,0.971]
[1754598729000,0.85803076,781.86,780.92,0.971]
[1754598729201,0.85803076,781.85,780.92,0.971]
[1754598729500,0.85803076,781.84,780.92,0.971]
[1754598729695,0.85803076,781.83,780.92,0.971]
[1754598729896,0.85803076,781.82,780.92,0.971]
[1754598730202,0.85803076,781.81,780.92,0.971]
[1754598730398,0.85803076,781.8,780.92,0.971]
[1754598730599,0.85803076,781.79,780.92,0.971]
[1754598730898,0.85803076,781.78,780.92,0.971]
[1754598731097,0.85803076,781.77,780.92,0.971]
[1754598731397,0.85803076,781.76,780.92,0.971]
[1754598731600,0.85803076,781.75,780.92,0.971]
[1754598731796,0.85803076,781.74,780.92,0.971]
[1754598732099,0.85834007,781.73,780.92,0.971]
[1754598732300,0.85841682,781.72,780.92,0.971]
[1754598732596,0.767,781.99,780.92,0.971]
[1754598732798,0.85841682,781.98,780.92,0.971]
[1754598732996,0.767,781.99,780.92,0.971]
[1754598732997,0.85841682,781.97,780.92,0.971]
[1754598733196,0.85841682,781.96,780.92,0.971]
[1754598733398,0.85841682,781.95,780.92,0.971]
[1754598733599,0.85841682,781.94,780.92,0.971]
[1754598733799,0.85841682,781.93,780.92,0.971]
[1754598733997,0.85841682,781.92,780.92,0.971]
[1754598734201,0.85841682,781.91,780.92,0.971]
[1754598734500,0.85841682,781.9,780.92,0.971]
[1754598734702,0.85841682,781.89,780.92,0.971]
[1754598734900,0.85841682,781.88,780.92,0.971]
[1754598735097,0.85841682,781.87,780.92,0.971]
[1754598735297,0.85841682,781.86,780.92,0.971]
[1754598735499,0.85841682,781.85,780.92,0.971]
[1754598735698,0.85841682,781.84,780.92,0.971]
[1754598735901,0.8626864,781.96,780.92,0.971]
[1754598735902,0.85841682,781.83,780.92,0.971]
[1754598736198,0.85841682,781.82,780.92,0.971]
[1754598736399,0.85841682,781.81,780.92,0.971]
[1754598736601,0.85841682,781.8,780.92,0.971]
[1754598736802,0.85841682,781.79,780.92,0.971]
[1754598736999,0.85841682,781.78,780.92,0.971]
[1754598737202,0.85841682,781.77,780.92,0.971]
[1754598737400,0.85841682,781.76,780.92,0.971]
[1754598737600,0.85841682,781.75,780.92,0.971]
[1754598737801,0.85841682,781.74,780.92,0.971]
[1754598738005,0.85841682,781.73,780.92,0.971]
[1754598738201,0.85841682,781.72,780.92,0.971]
[1754598738406,0.8626864,781.94,780.92,0.971]
[1754598738407,0.85841682,781.71,780.92,0.971]
[1754598738602,0.85841682,781.7,780.92,0.971]
[1754598738804,0.85841682,781.69,780.93,0.85891021]
[1754598739106,0.85841682,781.68,780.93,0.85891021]
[1754598739404,0.85841682,781.67,780.94,0.85891021]
[1754598739608,0.85841682,781.66,780.94,0.85891021]
[1754598739806,0.85841682,781.65,780.94,0.85891021]
[1754598740009,0.85841682,781.64,780.94,0.85891021]
[1754598740308,0.85841682,781.63,780.92,0.971]
[1754598740510,0.85841682,781.62,780.92,0.971]
[1754598740706,0.85841682,781.61,780.92,0.971]
[1754598741006,0.8626864,781.83,780.92,0.971]
[1754598741207,0.85937082,781.82,780.92,0.971]
[1754598741407,0.85937082,781.81,780.92,1.82991021]
[1754598742210,1.72205722,781.81,780.92,1.82991021]
[1754598742406,0.85937082,781.8,780.93,0.85891021]
[1754598742805,0.85937082,781.8,780.92,0.971]
[1754598742806,0.8626864,781.79,780.95,0.85891021]
[1754598743009,0.8597733,781.78,780.95,0.85891021]
[1754598743310,0.8597733,781.77,780.96,0.85891021]
[1754598743510,0.8597733,781.76,780.96,0.85891021]
[1754598743808,0.8597733,781.75,780.96,0.85891021]
[1754598744008,0.8597733,781.74,780.96,0.85891021]
[1754598744208,0.8597733,781.73,780.96,0.85891021]
[1754598744512,0.767,781.99,780.92,0.971]
[1754598744513,0.8597733,781.72,780.98,0.85891021]
[1754598744708,0.8597733,781.71,780.98,0.85891021]
[1754598744914,0.8597733,781.7,780.98,0.85891021]
[1754598745115,0.8597733,781.69,780.98,0.85891021]
[1754598745313,0.8597733,781.68,780.99,0.85891021]
[1754598745510,0.8597733,781.67,780.99,0.85891021]
[1754598745813,0.8597733,781.66,780.99,0.85891021]
[1754598746010,0.8626864,781.73,780.99,0.85891021]
[1754598746011,0.8597733,781.65,780.99,0.85891021]
[1754598746212,0.8597733,781.64,780.99,0.85891021]
[1754598746411,0.8597733,781.63,781.0,0.85891021]
[1754598746610,0.8597733,781.62,781.0,0.85891021]
[1754598746910,0.8597733,781.61,781.0,0.85891021]
[1754598747110,0.86048021,781.6,781.0,0.85891021]
[1754598747312,0.86048021,781.59,781.01,0.85891021]
[1754598747512,0.86048021,781.58,781.01,0.85891021]
[1754598747718,0.86048021,781.57,781.01,0.85891021]
[1754598747915,0.86048021,781.56,781.01,0.85891021]
[1754598748115,0.86048021,781.55,781.01,0.85891021]
[1754598748319,0.86048021,781.55,780.92,0.971]
[1754598748320,0.86048021,781.54,781.02,0.85891021]
[1754598748615,0.86048021,781.53,781.01,0.85891021]
[1754598748815,0.86048021,781.52,781.01,0.85891021]
[1754598749020,0.86048021,781.51,781.01,0.85891021]
[1754598749216,0.86048021,781.5,781.01,0.85891021]
[1754598749516,0.86048021,781.49,781.02,0.85891021]
[1754598749716,0.86048021,781.48,781.02,0.85891021]
[1754598750020,0.86048021,781.47,781.09,0.85891021]
[1754598750221,0.86098455,781.46,781.09,0.85891021]
[1754598750420,0.86098455,781.45,781.09,0.85891021]
[1754598750622,0.86098455,781.44,781.09,0.85891021]
[1754598750916,0.8626864,781.6,781.09,0.85891021]
[1754598750917,0.86098455,781.43,781.09,0.85891021]
[1754598751117,0.22268651,781.66,780.96,1.1355619]
[1754598751316,0.8624726,781.6,781.09,0.85970434]
[1754598751616,0.86115564,781.59,781.09,0.85970434]
[1754598751818,0.86115564,781.58,781.09,0.85970434]
[1754598752020,0.86115564,781.57,781.09,0.85970434]
[1754598752318,0.86115564,781.56,781.09,0.85970434]
[1754598752517,0.86115564,781.55,781.09,0.85970434]
[1754598752719,0.86115564,781.54,781.09,0.85970434]
[1754598752918,0.86115564,781.53,781.09,0.85970434]
[1754598753118,0.86115564,781.52,781.09,0.85970434]
[1754598753322,0.8624726,781.59,781.1,0.85970434]
[1754598754021,0.8624726,781.62,781.08,0.85970434]
[1754598754218,1.08515911,781.66,781.04,0.85970434]
[1754598754521,0.22268651,781.66,781.01,0.85970434]
[1754598755418,0.22268651,781.66,780.99,0.85970434]
[1754598755922,0.22268651,781.66,780.98,0.85970434]
[1754598756419,0.86136097,781.65,780.98,0.85970434]
[1754598756718,0.86136097,781.64,780.98,0.85970434]
[1754598756922,0.86136097,781.63,780.99,0.954]
[1754598757222,0.86136097,781.62,780.99,0.954]
[1754598757419,0.86136097,781.61,780.99,0.954]
[1754598757618,0.86136097,781.6,780.99,0.954]
[1754598757823,0.86136097,781.59,780.99,0.954]
[1754598758121,0.22268651,781.66,780.99,0.954]
[1754598758122,0.86136097,781.58,780.99,0.954]
[1754598758319,0.86136097,781.57,780.99,0.954]
[1754598758518,0.22268651,781.66,780.99,0.954]
[1754598758519,0.86136097,781.56,780.99,0.954]
[1754598758725,0.86136097,781.55,780.99,0.954]
[1754598758919,0.86136097,781.54,780.99,0.954]
[1754598759123,0.86136097,781.53,780.99,0.954]
[1754598759321,0.86136097,781.52,780.99,0.954]
[1754598759523,0.86136097,781.51,780.99,0.954]
[1754598759722,0.86136097,781.5,780.99,0.954]
[1754598759921,0.86136097,781.49,780.99,0.954]
[1754598760221,0.22268651,781.66,780.99,0.954]
[1754598760433,0.86107691,781.65,780.99,0.954]
[1754598760721,0.86107691,781.64,780.99,0.954]
[1754598760922,0.86107691,781.63,780.99,0.954]
[1754598761127,0.86107691,781.62,780.99,0.954]
[1754598761324,0.86107691,781.61,780.99,0.954]
[1754598761524,0.86107691,781.6,780.99,0.954]
[1754598761723,0.86107691,781.59,780.99,0.954]
[1754598761928,0.22268651,781.66,780.99,0.954]
[1754598762227,0.86103645,781.65,780.99,0.954]
[1754598762523,0.86103645,781.64,780.99,0.954]
[1754598762725,0.86103645,781.63,780.99,0.954]
[1754598762922,0.86103645,781.62,780.99,0.954]
[1754598763122,0.86103645,781.61,780.99,0.954]
[1754598763323,0.86103645,781.6,780.99,0.954]
[1754598763522,0.86103645,781.59,780.99,0.954]
[1754598763724,0.86103645,781.58,780.99,0.954]
[1754598763924,0.86103645,781.57,780.99,0.954]
[1754598764127,0.86103645,781.56,780.99,0.954]
[1754598764325,0.86103645,781.55,780.99,0.954]
[1754598764623,0.86103645,781.54,780.99,0.954]
[1754598764824,0.86103645,781.53,780.99,0.954]
[1754598765028,0.86103645,781.52,780.99,0.954]
[1754598765228,0.22268651,781.66,780.99,0.954]
[1754598765428,0.86092507,781.65,780.99,0.954]
[1754598765627,0.86092507,781.64,780.99,0.954]
[1754598765829,0.86092507,781.63,780.99,0.954]
[1754598766024,0.86092507,781.62,780.99,0.954]
[1754598766228,0.86092507,781.61,780.99,0.954]
[1754598766426,0.86092507,781.6,780.99,0.954]
[1754598766725,0.86092507,781.59,780.99,0.954]
[1754598767026,0.86092507,781.58,780.99,0.954]
[1754598767226,0.86092507,781.57,780.99,0.954]
[1754598767428,0.22268651,781.66,780.99,0.954]
[1754598767429,0.86092507,781.56,780.99,0.954]
[1754598767629,0.86092507,781.55,780.99,0.954]
[1754598767925,0.22268651,781.66,780.99,0.954]
[1754598768129,0.8608315,781.65,780.99,0.954]
[1754598768329,0.8608315,781.64,780.99,0.954]
[1754598768531,0.8608315,781.63,780.99,1.81370434]
[1754598768730,0.8608315,781.62,781.0,0.85970434]
[1754598769028,0.8608315,781.61,781.06,0.85970434]
[1754598769227,0.8608315,781.6,781.07,0.85970434]
[1754598769526,0.8608315,781.59,781.07,0.85970434]
[1754598769725,0.8608315,781.58,781.07,0.85970434]
[1754598770030,0.8624726,781.81,781.07,0.85970434]
[1754598770326,0.86076314,781.8,781.07,0.85970434]
[1754598770526,0.86076314,781.79,781.07,0.85970434]
[1754598770725,0.86076314,781.78,781.07,0.85970434]
[1754598770925,0.8624726,781.81,781.07,0.85970434]
[1754598771128,0.86076134,781.8,781.07,0.85970434]
[1754598771429,0.86076134,781.79,781.07,0.85970434]
[1754598771629,0.8624726,781.76,781.1,0.85970434]
[1754598771828,0.86076134,781.75,781.1,0.85970434]
[1754598772126,0.86076134,781.74,781.1,0.85970434]
[1754598772326,0.86076134,781.73,781.1,0.85970434]
[1754598772630,0.86076134,781.72,781.1,0.85970434]
[1754598772930,0.86076134,781.71,781.1,0.85970434]
[1754598773128,0.86076134,781.7,781.1,0.85970434]
[1754598773332,0.86076134,781.69,781.1,0.85970434]
[1754598773629,0.86076134,781.68,781.1,0.85970434]
[1754598773827,0.86076134,781.67,781.1,0.85970434]
[1754598774027,0.86076134,781.66,781.1,0.85970434]
[1754598774230,0.86076134,781.65,781.1,0.85970434]
[1754598774429,0.86076134,781.64,781.1,0.85970434]
[1754598774627,0.86076134,781.63,781.1,0.85970434]
[1754598774829,0.86076134,781.62,781.1,0.85970434]
[1754598775029,0.86076134,781.61,781.1,0.85970434]
[1754598775230,0.86076134,781.6,781.1,0.85970434]
[1754598775428,0.86076134,781.59,781.1,0.85970434]
[1754598775629,0.86076134,781.58,781.1,0.85970434]
[1754598775829,0.86076134,781.57,781.1,0.85970434]
[1754598776028,0.86076134,781.56,781.1,0.85970434]
[1754598776232,0.86076134,781.55,781.1,0.85970434]
[1754598776429,0.8624726,781.75,781.1,0.85970434]
[1754598776635,0.8607388,781.74,781.1,0.85970434]
[1754598776931,0.86073717,781.73,781.1,0.85970434]
[1754598777130,0.86073717,781.72,781.1,0.85970434]
[1754598777333,0.86073717,781.71,781.1,0.85970434]
[1754598777630,0.86073717,781.7,781.1,0.85970434]
[1754598777933,0.86073717,781.69,781.13,0.85970434]
[1754598778129,0.86073717,781.68,781.13,0.85970434]
[1754598778332,0.86073717,781.67,781.14,0.85970434]
[1754598778529,0.86073717,781.66,781.14,0.85970434]
[1754598778729,0.86073717,781.65,781.13,0.85970434]
[1754598778934,0.86073717,781.64,781.13,0.85970434]
[1754598779133,0.86073717,781.63,781.13,0.85970434]
[1754598779327,0.86073717,781.62,781.13,0.85970434]
[1754598779532,0.86073717,781.61,781.13,0.85970434]
[1754598779728,0.8624726,781.72,781.13,0.85970434]
[1754598779928,0.86072648,781.71,781.13,0.85970434]
[1754598780130,0.86072648,781.7,781.13,0.85970434]
[1754598780331,0.86097172,781.69,781.13,0.85970434]
[1754598780534,0.86097172,781.68,781.12,0.85970434]
[1754598780730,0.86097172,781.67,781.12,0.85970434]
[1754598780935,0.86097172,781.66,781.12,0.85970434]
[1754598781132,0.86097172,781.65,781.21,0.85970434]
[1754598781434,1.08513631,781.84,781.21,0.85970434]
[1754598781435,0.86097172,781.64,781.21,0.85970434]
[1754598781634,0.86097172,781.64,781.04,1.1355619]
[1754598781635,0.86097172,781.63,781.2,0.85970434]
[1754598781838,0.22266371,781.84,781.21,0.85970434]
[1754598782036,0.86085461,781.83,781.21,1.56770434]
[1754598782339,0.86085461,781.82,781.21,0.708]
[1754598782541,0.86085461,781.81,781.23,0.85970434]
[1754598782739,0.86085461,781.8,781.23,0.85970434]
[1754598782938,0.86085461,781.79,781.23,0.85970434]
[1754598783239,0.86085461,781.78,781.22,0.85970434]
[1754598783439,0.86085461,781.77,781.22,0.85970434]
[1754598783640,0.86085461,781.76,781.22,0.85970434]
[1754598783840,0.86085461,781.75,781.22,0.85970434]
[1754598784042,0.22263166,781.95,781.22,0.85970434]
[1754598784240,0.86041818,781.94,781.21,1.56770434]
[1754598784440,0.86041818,781.93,781.21,1.56770434]
[1754598784637,0.86041818,781.92,781.26,0.85970434]
[1754598784837,0.86041818,781.91,781.27,0.85970434]
[1754598785037,0.22263166,781.95,781.27,0.85970434]
[1754598785038,0.86041818,781.9,781.27,0.85970434]
[1754598785235,0.86041818,781.89,781.26,0.85970434]
[1754598785440,0.86041818,781.88,781.25,0.85970434]
[1754598785639,0.86041818,781.87,781.25,0.85970434]
[1754598785838,0.86041818,781.86,781.25,0.85970434]
[1754598786136,0.86041818,781.85,781.25,0.85713706]
[1754598786337,0.22263166,781.95,781.24,0.85713706]
[1754598786338,0.86041818,781.84,781.24,0.85713706]
[1754598786542,0.85971917,781.83,781.26,0.85713706]
[1754598786744,0.85971917,781.82,781.36,0.85713706]
[1754598787041,0.767,781.99,781.37,0.695]
[1754598787240,0.85971291,781.98,781.37,0.695]
[1754598787439,0.85971291,781.97,781.37,0.695]
[1754598787647,0.767,781.99,781.37,0.695]
[1754598787842,0.85948066,781.98,781.37,0.695]
[1754598788148,0.767,781.99,781.37,0.695]
[1754598788149,0.85948066,781.97,781.37,0.695]
[1754598788343,0.85948066,781.96,781.37,0.695]
[1754598788546,0.85948066,781.95,781.37,0.695]
[1754598788743,0.85948066,781.94,781.37,0.695]
[1754598788944,0.85948066,781.93,781.37,0.695]
[1754598789149,0.767,781.99,781.37,0.695]
[1754598789344,0.85886226,781.98,781.37,0.695]
[1754598789548,0.85886226,781.97,781.37,0.695]
[1754598789744,0.85886226,781.96,781.37,0.695]
[1754598790050,0.85886226,781.95,781.37,0.695]
[1754598790251,0.767,781.99,781.37,0.695]
[1754598790454,0.85853574,781.98,781.37,0.695]
[1754598790650,0.85853574,781.97,781.37,0.695]
[1754598790955,0.85853574,781.96,781.37,0.695]
[1754598791149,0.767,781.99,781.37,0.695]
[1754598791355,0.85830299,781.98,781.37,0.695]
[1754598791555,0.85830299,781.97,781.37,0.695]
[1754598791755,0.767,781.99,781.37,0.695]
[1754598792054,0.85826832,781.98,781.37,0.695]
[1754598792255,0.85826832,781.97,781.37,0.695]
[1754598792456,0.767,781.99,781.37,0.695]
[1754598792654,0.85802691,781.98,781.37,0.695]
[1754598792954,0.85802691,781.97,781.37,0.695]
[1754598793151,0.767,781.99,781.37,0.695]
[1754598793355,0.85784553,781.98,781.37,0.695]
[1754598793555,0.85784553,781.97,781.37,0.695]
[1754598793752,0.767,781.99,781.37,0.695]
[1754598793957,0.85780722,781.98,781.37,0.695]
[1754598794154,0.85780722,781.97,781.37,0.695]
[1754598794358,0.85780722,781.96,781.37,0.695]
[1754598794555,0.85780722,781.95,781.37,0.695]
[1754598794757,0.767,781.99,781.37,0.695]
[1754598794960,0.85760594,781.98,781.37,0.695]
[1754598795157,0.85760594,781.97,781.37,0.695]
[1754598795358,0.85760594,781.96,781.37,0.695]
[1754598795561,0.85760594,781.95,781.37,0.695]
[1754598795758,0.85760594,781.94,781.37,0.695]
[1754598796061,0.85760594,781.93,781.37,0.695]
[1754598796258,0.85760594,781.92,781.37,0.695]
[1754598796463,0.767,781.99,781.37,0.695]
[1754598796663,0.8572607,781.98,781.37,0.695]
[1754598796862,0.8572607,781.97,781.37,0.695]
[1754598797061,0.8572607,781.96,781.37,0.695]
[1754598797261,0.8572607,781.95,781.37,0.695]
[1754598797460,0.8572607,781.94,781.37,0.695]
[1754598797663,0.8572607,781.93,781.37,0.695]
[1754598797862,0.85710986,781.92,781.37,0.695]
[1754598798062,0.767,781.99,781.37,0.695]
[1754598798267,0.85710986,781.98,781.37,0.695]
[1754598798570,0.85710986,781.97,781.37,0.695]
[1754598798763,0.85710986,781.96,781.37,0.695]
[1754598799067,0.85710986,781.95,781.37,0.695]
[1754598799263,0.767,781.99,781.37,0.695]
[1754598799264,0.85710986,781.94,781.37,0.695]
[1754598799464,0.85710986,781.93,781.37,0.695]
[1754598799765,0.85710986,781.92,781.37,0.695]
[1754598799964,0.767,781.99,781.37,0.695]
[1754598800168,0.85684524,781.98,781.37,0.695]
[1754598800364,0.85684524,781.97,781.37,0.695]
[1754598800670,0.85684524,781.96,781.37,0.695]
[1754598800870,0.85684524,781.95,781.37,0.695]
[1754598801172,0.767,781.99,781.37,0.695]
[1754598802170,0.85679697,781.98,781.37,0.695]
[1754598802370,0.85679697,781.97,781.37,0.695]
[1754598802666,0.85677882,781.96,781.37,0.695]
[1754598802870,0.85677882,781.95,781.37,0.695]
[1754598803070,0.85677882,781.94,781.37,0.695]
[1754598803371,0.85677882,781.93,781.37,0.695]
[1754598803570,0.85677882,781.92,781.37,0.695]
[1754598803770,0.767,781.99,781.37,0.695]
[1754598803972,0.85677847,781.98,781.37,0.695]
[1754598804174,0.85677847,781.97,781.37,0.695]
[1754598804473,0.85677847,781.96,781.37,0.695]
[1754598804670,0.85677847,781.95,781.38,1.121]
[1754598804869,0.85677847,781.94,781.38,1.121]
[1754598805070,0.85677847,781.93,781.38,1.121]
[1754598805274,0.85677847,781.92,781.38,1.121]
[1754598805475,0.767,781.99,781.38,1.121]
[1754598805673,0.85680986,781.98,781.38,1.121]
[1754598805871,0.85680986,781.97,781.38,1.121]
[1754598806170,0.85680986,781.96,781.38,1.121]
[1754598806371,0.767,781.99,781.38,1.121]
[1754598806372,0.85680986,781.95,781.38,1.121]
[1754598806572,0.85680986,781.94,781.38,1.121]